Cogmind - Beta 15 @@@ ROGUE MODE // 2025.09.30 @ 02:12:43 Player: Wotf Result: Destroyed by H-66 Slayer with Gauss Rifle Performance ------------- Evolutions (5) 2500 Regions Visited (12) 2400 Robots Destroyed (102) 510 Value Destroyed (3089) 3089 Prototype IDs (31) 620 Alien Tech Used (0) 0 Bonus (323) 323 TOTAL SCORE: 9442 Bonus ------- High Alert Combat Kills 23 Aligned with FarCom 300 Cogmind --------- Core Integrity 0/1000 Matter 177/300 Energy 100/100 System Corruption 2% Temperature Cool (0) Movement Core (250) Ox4 Location -5/Upper Caves Parts ------- > --- POWER (1) -------- (None) > --- PROPULSION (5) --- (None) > --- UTILITY (9) ------ Structural Scanner Visual Processing Unit Advanced Melee Analysis Suite Advanced Melee Analysis Suite Target Analyzer Makeshift Light Armor Plating Makeshift Light Armor Plating (fused) EM Shield > --- WEAPON (2) ------- Heavy Assault Rifle > --- INVENTORY (5) ---- High-capacity Battery (250) Enhanced Gauss Cannon Smartbomb Launcher Axe Peak State ------------ > --- POWER ------------ (None) > --- PROPULSION ------- Carbon-fiber Leg Carbon-fiber Leg > --- UTILITY ---------- Advanced Cooling System Structural Scanner Visual Processing Unit Advanced Terrain Scanner Advanced Melee Analysis Suite Advanced Melee Analysis Suite Target Analyzer Makeshift Light Armor Plating EM Shield > --- WEAPON ----------- Axe Blade Saw > --- INVENTORY -------- High-capacity Battery Proton Cannon Enhanced Gauss Cannon Smartbomb Launcher [Rating: 50] Favorites ----------- Power Deuterium Engine Engine Deuterium Engine Power Core Fission Core Propulsion Aluminum Leg Treads Armored Medium Treads Leg Aluminum Leg Wheel Wheel Hover Unit Linear Gravjet Flight Unit Nuclear Pulse Array Utility Targeting Computer Device Particle Charger Storage Medium Storage Unit Processor Targeting Computer Protection Hardened Medium Armor Plating Weapon Shotgun Energy Gun Pulse Rifle Energy Cannon Improved EM Pulse Cannon Ballistic Gun Shotgun Ballistic Cannon Assault Cannon Launcher Grenade Launcher Impact Weapon Great Maul Slashing Weapon Blade Saw Build | -11 -10 -10 -10 -9 -8 -7 -6 -5 -5 -5 -5 -5 ------- Run | Yrd Mat Min Exi Min Mat Fac Fac Fac Was Fac Upp Upp Slots Evolved 10 | . . . . . 4 2 2 2 . . . . Power . | . . . . . . . . . . . . . Propulsion 3 | . . . . . 2 1 . . . . . . Utility 7 | . . . . . 2 1 2 2 . . . . Weapon . | . . . . . . . . . . . . . Parts Attached 98 | 8 7 6 1 2 22 25 1 . 2 9 14 1 Power 11 | 1 1 1 . . 3 4 . . . 1 . . Engine 8 | 1 1 1 . . 1 4 . . . . . . Core 3 | . . . . . 2 . . . . 1 . . Reactor . | . . . . . . . . . . . . . Propulsion 30 | 3 2 3 . 1 6 5 . . 1 6 3 . Treads 2 | 1 . . . . . . . . . . 1 . Leg 18 | 2 2 3 . 1 6 2 . . . . 2 . Wheel 1 | . . . . . . . . . . 1 . . Hover 7 | . . . . . . 3 . . . 4 . . Flight 2 | . . . . . . . . . 1 1 . . Utility 29 | 2 1 . 1 . 6 9 . . 1 2 7 . Device 12 | 1 . . . . 3 2 . . 1 2 3 . Storage 3 | 1 . . 1 . . 1 . . . . . . Processor 7 | . 1 . . . 1 3 . . . . 2 . Hackware . | . . . . . . . . . . . . . Protection 7 | . . . . . 2 3 . . . . 2 . Artifact . | . . . . . . . . . . . . . Weapon 28 | 2 3 2 . 1 7 7 1 . . . 4 1 Energy Gun 3 | 2 . . . . . 1 . . . . . . Energy Cannon 8 | . 1 . . . 4 2 . . . . 1 . Ballistic Gun 5 | . 2 1 . . 1 . . . . . . 1 Ballistic Cannon 4 | . . . . 1 1 1 . . . . 1 . Launcher 4 | . . 1 . . . 2 . . . . 1 . Special Weapon . | . . . . . . . . . . . . . Impact Weapon 1 | . . . . . 1 . . . . . . . Slashing Weapon 3 | . . . . . . 1 1 . . . 1 . Piercing Weapon . | . . . . . . . . . . . . . Special Melee Weapon . | . . . . . . . . . . . . . Unidentified Prototypes 3 | . . . . . 1 2 . . . . . . Corrupted Parts 2 | . . . . . 1 1 . . . . . . System Corruption 10 | . . . . . 8 2 . . . . . . Parts Lost 42 | . . . . . 7 19 . . . 3 8 5 Power 4 | . . . . . 1 3 . . . . . . Propulsion 23 | . . . . . 4 9 . . . 2 6 2 Utility 9 | . . . . . 1 4 . . . 1 2 1 Weapon 6 | . . . . . 1 3 . . . . . 2 Highest Loss Streak 7 | . . . . . 2 7 . . . 2 5 5 To Critical Strikes . | . . . . . . . . . . . . . Average Backups 8 | 3 7 8 8 8 9 11 3 3 4 4 3 4 Power 1 | . 1 1 1 1 1 1 . . . . . . Propulsion . | 2 3 1 1 1 . . . . . . . . Utility 3 | . . 1 3 3 4 5 2 2 3 2 1 1 Weapon 3 | . 3 3 3 3 3 4 1 1 1 2 2 3 Tool/Special . | . . . . . . . . . . . . . Unused Backups 21 | . 3 3 1 . 4 7 . . 1 1 . 1 Power 3 | . . 1 . . 1 1 . . . . . . Propulsion 4 | . 1 2 . . . 1 . . . . . . Utility 10 | . 1 . 1 . 3 2 . . 1 1 . 1 Weapon 3 | . 1 . . . . 2 . . . . . . Tool/Special 1 | . . . . . . 1 . . . . . . Average Slot Usage (%) 83 | . 100 100 100 100 95 82 31 29 30 37 62 74 Engine 6 | . 14 14 14 14 4 4 . . . . . . Core 1 | . . . . . 4 1 . . . . 1 . Leg 23 | . 28 28 28 28 32 26 . . . . 6 10 Device 5 | . 1 . . . 4 11 . . 1 4 15 16 Storage 7 | . 14 14 14 14 9 6 . . . . . . Processor 14 | . 12 14 14 14 17 8 20 17 17 17 16 23 Protection 4 | . . . . . 4 6 6 5 5 5 7 11 Energy Cannon 5 | . 5 . . . 10 8 . . . . 1 4 Ballistic Gun 6 | . 14 27 28 11 2 . . . . . . . Ballistic Cannon 1 | . . . . 12 3 . . . . . . . Slashing Weapon 1 | . . . . . . 3 4 5 4 . 5 5 Peak Build Rating 50 | 7 9 15 15 21 36 40 10 11 26 42 50 50 Average Rating 24 | 5 8 13 15 16 31 31 9 10 13 19 39 48 On Entrance 18 | . 7 9 15 15 21 32 11 10 11 23 42 50 Naked Turns . | . . . . . . . . . . . . . Heaviest Build 56 | 15 16 20 25 27 45 56 3 3 10 17 25 21 Greatest Support 65 | 20 20 22 22 32 52 65 3 3 8 36 36 30 Greatest Overweight (x) 14 | 2 . . 1 1 2 14 . . 1 2 5 3 Average Overweight (x) . | . . . . . . . . . . . . . Largest Inventory Capacity 15 | 8 8 8 10 10 10 15 5 5 5 5 5 5 Average Capacity 9 | 7 8 8 8 10 10 13 5 5 5 5 5 5 Most Carried 15 | 8 8 8 9 10 10 15 4 4 5 5 5 5 Average Carried 8 | 3 7 7 7 8 9 12 3 3 4 4 4 5 Final Capacity 10 | 8 8 8 10 10 10 5 5 5 5 5 5 5 Final Carried 10 | 7 8 8 8 10 9 3 3 4 4 5 5 5 Class Distribution -------------------- 55% | Mutant 28% | Scavenger-Mutant 8% | Skirmisher 7% | Derelict-Mutant Dominant Class ---------------- Mutant | -10/Materials Mutant | -10/Mines Mutant | -10/Exiles Mutant | -9/Mines Scavenger-Mutant | -8/Materials Scavenger-Mutant | -7/Factory Mutant | -6/Factory Mutant | -5/Factory Mutant | -5/Waste Mutant | -5/Factory Derelict-Mutant | -5/Upper Caves Derelict-Mutant | -5/Upper Caves Resources | -11 -10 -10 -10 -9 -8 -7 -6 -5 -5 -5 -5 -5 ----------- Run | Yrd Mat Min Exi Min Mat Fac Fac Fac Was Fac Upp Upp Matter Collected 2609 | 280 284 282 . 85 929 349 . . . 29 364 7 Remotely 81 | 81 . . . . . . . . . . . . Salvage Created 3511 | 73 536 373 . 6 1427 826 . . . . 270 . Parts 209 | 3 34 33 . . 66 55 . . . . 18 . Haulers Intercepted 2 | . 1 . . . 1 . . . . . . . Recyclers Shooed 5 | . 2 . . . 2 1 . . . . . . Parts Field Recycled . | . . . . . . . . . . . . . Retrieved Matter . | . . . . . . . . . . . . . Parts Self-Destructed 8 | . . . . . . . . . . . 8 . Prevented 1 | . . . . . . . . . . . 1 . Kills | -11 -10 -10 -10 -9 -8 -7 -6 -5 -5 -5 -5 -5 ------- Run | Yrd Mat Min Exi Min Mat Fac Fac Fac Was Fac Upp Upp Combat Hostiles Destroyed 75 | . 9 10 . 4 25 16 . . . . 11 . Melee 8 | . . . . . . 5 . . . . 3 . Guns 21 | . 8 8 . . 5 . . . . . . . Cannons 20 | . 1 . . 2 11 6 . . . . . . AOE 22 | . . 2 . 2 6 4 . . . . 8 . Classes Destroyed 17 | 1 6 . . 1 5 3 . . . . 1 . Worker 7 | . 1 4 . . 1 1 . . . . . . Builder 3 | . . . . . 1 2 . . . . . . Tunneler 4 | . 1 3 . . . . . . . . . . Hauler 2 | . 1 . . . 1 . . . . . . . Recycler 6 | 1 1 . . . 2 2 . . . . . . Mechanic 2 | . 1 . . . 1 . . . . . . . Operator 3 | . . . . . 1 2 . . . . . . Watcher 4 | . . . . . 3 1 . . . . . . Swarmer 18 | . 2 6 . . 3 . . . . . 7 . Cutter 3 | . . . . . . 3 . . . . . . Grunt 32 | . 7 4 . . 16 3 . . . . 2 . Duelist 1 | . . . . . . . . . . . 1 . Sentry 6 | . . . . . 5 1 . . . . . . Specialist 1 | . . . . . . 1 . . . . . . Hunter 4 | . . . . . 1 2 . . . . 1 . Programmer 6 | . . . . . . 6 . . . . . . Assembled 4 | . . . . 4 . . . . . . . . Best Kill Streak 8 | 1 6 3 . 3 4 5 . . . . 8 . Combat Bots Only 8 | . 2 3 . 3 3 3 . . . . 8 . Max Kills in Single Turn 4 | 1 1 2 . 2 3 2 . . . . 4 . Gunslinging 1 | . . 1 . . . . . . . . . . Exploded 4 | . . 1 . 2 3 1 . . . . 4 . Melee 1 | . . . . . . 1 . . . . 1 . Uniques/NPCs Destroyed . | . . . . . . . . . . . . . Combat | -11 -10 -10 -10 -9 -8 -7 -6 -5 -5 -5 -5 -5 -------- Run | Yrd Mat Min Exi Min Mat Fac Fac Fac Was Fac Upp Upp Hostile Shots Fired 636 | . 35 34 . 2 98 267 2 . . 38 126 34 Missed 217 | . 11 7 . . 37 89 2 . . 13 54 4 Hits 419 | . 24 27 . 2 61 178 . . . 25 72 30 Melee 20 | . . . . . . 10 . . . . 10 . Projectile 399 | . 24 27 . 2 61 168 . . . 25 62 30 AOE 4 | . . . . 2 . 2 . . . . . . Critical Strikes 20 | . . . . . 4 11 . . . 1 3 1 Damage Taken 6995 | . 267 284 . 107 1173 2811 . . . 383 1427 543 Core 1836 | . 59 38 . 17 124 598 . . . 233 592 175 Absorbed by Shields . | . . . . . . . . . . . . . Redirected to Shielding 46 | . . . . . . 5 . . . 6 35 . Regen/Repaired (Parts) 207 | . . . . . . 207 . . . . . . Core Remaining (%) 69 | 100 . . . 54 77 14 100 . . . . . Volleys Fired 235 | 3 32 22 . 5 109 54 . . . . 7 3 Largest 2 | 2 2 2 . 1 2 2 . . . . 1 1 Hottest 138 | 90 83 53 . 37 138 138 . . . . 75 23 Shots Fired 374 | 6 62 44 . 5 171 76 . . . . 7 3 Gun 139 | 6 48 41 . . 34 7 . . . . . 3 Cannon 213 | . 14 . . 3 133 61 . . . . 2 . Launcher 22 | . . 3 . 2 4 8 . . . . 5 . Special . | . . . . . . . . . . . . . Kinetic 179 | . 48 41 . 3 80 3 . . . . 1 3 Thermal 51 | 3 14 . . . 17 17 . . . . . . Explosive 22 | . . 3 . 2 4 8 . . . . 5 . Electromagnetic 122 | 3 . . . . 70 48 . . . . 1 . Robot Hit Streak 13 | 4 6 13 . 7 10 8 . . . . 7 8 Robot Miss Streak 5 | 1 4 4 . . 5 4 . . . . . 2 Penetration Max . | . . . . . . . . . . . . . Secondary Targets 1 | . . 1 . . . . . . . . . . Max Gunslinging Chain 1 | . . 1 . . . . . . . . . . Shots Hit Robots 276 | 4 35 32 . 4 105 69 . . . . 18 9 Core Hits 176 | 1 24 25 . 7 66 37 . . . . 15 1 Critical Kills . | . . . . . . . . . . . . . Critical Parts Destroyed . | . . . . . . . . . . . . . Critical Strikes 8 | . . . . . . 6 . . . . 1 1 Burn 1 | . . . . . . 1 . . . . . . Corrupt 2 | . . . . . . 2 . . . . . . Sever 5 | . . . . . . 3 . . . . 1 1 Melee Attacks 83 | . . . . . 6 41 13 . . . 15 8 Impact 6 | . . . . . 6 . . . . . . . Slashing 77 | . . . . . . 41 13 . . . 15 8 Piercing . | . . . . . . . . . . . . . Sneak Attacks 4 | . . . . . . 4 . . . . . . Combat Hostiles . | . . . . . . . . . . . . . Follow-up Attacks 1 | . . . . . . . . . . . 1 . Damage Inflicted 8515 | 84 526 639 . 214 3414 2274 . . . . 1192 172 Guns 1343 | 54 383 469 . . 345 80 . . . . . 12 Cannons 3347 | . 141 . . 68 2285 784 . . . . 69 . Explosions 2551 | 30 . 170 . 146 762 603 . . . . 840 . Melee 1230 | . . . . . . 787 . . . . 283 160 Ramming 44 | . 2 . . . 22 20 . . . . . . Kinetic 1996 | . 383 469 . 68 975 52 . . . . 37 12 Thermal 807 | 56 141 . . . 324 286 . . . . . . Explosive 2407 | . . 170 . 146 648 603 . . . . 840 . Electromagnetic 2031 | 28 . . . . 1445 526 . . . . 32 . Impact . | . . . . . . . . . . . . . Slashing 1230 | . . . . . . 787 . . . . 283 160 Piercing . | . . . . . . . . . . . . . Highest Corruption 10 | . . . . . 8 10 . . . 2 2 2 Average Corruption 5 | . . . . . 8 5 . . . 2 2 2 Corruption Purged 4 | . . . . . . 4 . . . . . . Corruption Blocked . | . . . . . . . . . . . . . Effects 64 | . . . . . 19 32 . . . . 9 4 Message Errors 14 | . . . . . 6 5 . . . . 2 1 Matter Fused 20 | . . . . . 8 8 . . . . 3 1 Heat Flow Errors 10 | . . . . . 3 4 . . . . 2 1 Energy Discharges 4 | . . . . . . 3 . . . . . 1 Parts Rejected 1 | . . . . . . 1 . . . . . . Parts Fused 2 | . . . . . . 1 . . . . 1 . Data Loss (minor) 4 | . . . . . 2 1 . . . . 1 . Data Loss (major) 2 | . . . . . . 2 . . . . . . Misfires 3 | . . . . . . 3 . . . . . . Alerts 1 | . . . . . . 1 . . . . . . Misdirections 3 | . . . . . . 3 . . . . . . Overload Shots . | . . . . . . . . . . . . . Overflow Damage 440 | . 5 30 . 41 102 159 . . . . 103 . Projectiles 77 | . 5 . . . 47 25 . . . . . . Explosions 285 | . . 30 . 41 55 61 . . . . 98 . Melee 78 | . . . . . . 73 . . . . 5 . Knockbacks 23 | . . . . . 22 1 . . . . . . Impact 1 | . . . . . 1 . . . . . . . Kinetic 18 | . . . . . 17 1 . . . . . . Secondary 4 | . . . . . 4 . . . . . . . Self-Inflicted Damage 196 | . . . . . 193 3 . . . . . . Shots 3 | . . . . . 3 . . . . . . . Rammed 1 | . . . . . . 1 . . . . . . Targets Rammed 10 | . 1 . . . 4 5 . . . . . . Kicked 9 | . 1 . . . 4 4 . . . . . . Crushed . | . . . . . . . . . . . . . Highest Temperature 682 | 90 74 6 . . 682 383 . . . . 253 183 Average Temperature 99 | 47 19 2 . . 120 93 . . . . 88 98 Received Heat Transfer 1296 | . 111 57 . . 450 318 . . . 27 333 . Effects 18 | . . . . . 18 . . . . . . . Shutdowns 3 | . . . . . 3 . . . . . . . Energy Bleed 3 | . . . . . 3 . . . . . . . Interference 3 | . . . . . 3 . . . . . . . Matter Decay 1 | . . . . . 1 . . . . . . . Short Circuit 1 | . . . . . 1 . . . . . . . Damage (minor) 2 | . . . . . 2 . . . . . . . Damage (major) 4 | . . . . . 4 . . . . . . . Damage (core) 1 | . . . . . 1 . . . . . . . Siege Activations . | . . . . . . . . . . . . . Martial Activations . | . . . . . . . . . . . . . Shielding Activations . | . . . . . . . . . . . . . Robots Disrupted . | . . . . . . . . . . . . . Combat Hostiles . | . . . . . . . . . . . . . Robots Corrupted 4 | . . . . . 3 1 . . . . . . Combat Hostiles 4 | . . . . . 3 1 . . . . . . Parts Fried 12 | . . . . . 7 5 . . . . . . Impact Corruptions . | . . . . . . . . . . . . . Robots Melted . | . . . . . . . . . . . . . Combat Hostiles . | . . . . . . . . . . . . . Parts Melted 2 | . 1 . . . . 1 . . . . . . Heat Transferred 1334 | 124 296 . . . 433 481 . . . . . . Parts Sabotaged . | . . . . . . . . . . . . . Parts Stolen . | . . . . . . . . . . . . . Parts Stripped . | . . . . . . . . . . . . . Power Chain Reactions 3 | 1 . . . . 2 . . . . . . . Alert | -11 -10 -10 -10 -9 -8 -7 -6 -5 -5 -5 -5 -5 ------- Run | Yrd Mat Min Exi Min Mat Fac Fac Fac Was Fac Upp Upp Maximum Alert Level 2 | . . . . . 2 2 1 . . . . . Low Security (%) 66 | 100 100 100 . 100 43 43 59 100 100 100 . . Level 1 30 | . . . . . 53 49 40 . . . . . Level 2 2 | . . . . . 3 6 . . . . . . Level 3 . | . . . . . . . . . . . . . Level 4 . | . . . . . . . . . . . . . Level 5 . | . . . . . . . . . . . . . High Security . | . . . . . . . . . . . . . Max Security . | . . . . . . . . . . . . . Peak Influence 513 | 5 108 123 . 4 428 513 235 70 . 85 . . Initial 235 | . . 35 . . . 191 235 70 . . . . Average 132 | . 40 53 . . 171 229 190 15 . 31 . . Influence Increases 3182 | 5 336 294 . 4 949 1104 . . . 125 365 . Destroy 0b10 Robot/C 1420 | . 180 200 . . 500 320 . . . . 220 . Destroy 0b10 Robot/NC 155 | 5 25 35 . . 50 40 . . . . . . Destroy Leader 352 | . 52 40 . . 128 92 . . . . 40 . Successful Hack 112 | . 19 . . . 55 33 . . . 5 . . Disable Machine 90 | . . . . . 75 15 . . . . . . Anti-Garrison Action 200 | . . . . . . 200 . . . . . . Destroy Structure 163 | . . 19 . 4 66 74 . . . . . . Lose Combat Pursuer 690 | . 60 . . . 75 330 . . . 120 105 . Influence Decreases 3182 | 5 244 371 15 4 528 1044 336 145 . 80 331 79 Entered New Map 657 | . . 57 15 . . 230 246 75 . . 18 16 Time Decay 2225 | 5 244 314 . 4 458 624 90 70 . 70 283 63 Lost Part 300 | . . . . . 70 190 . . . 10 30 . Squads Dispatched 29 | . 2 . . 1 5 16 2 1 . 2 . . Investigation 6 | . 1 . . . 2 2 . . . 1 . . Extermination 3 | . . . . . . 3 . . . . . . Reinforcement 20 | . 1 . . 1 3 11 2 1 . 1 . . Assault . | . . . . . . . . . . . . . Garrison . | . . . . . . . . . . . . . Intercept . | . . . . . . . . . . . . . Searches Triggered . | . . . . . . . . . . . . . Construction Impeded 4 | . . . . 1 2 1 . . . . . . Haulers Reinforced . | . . . . . . . . . . . . . Active Scanning Responses . | . . . . . . . . . . . . . Cargo Convoy Interrupts 1 | . . . . . . 1 . . . . . . Stealth | -11 -10 -10 -10 -9 -8 -7 -6 -5 -5 -5 -5 -5 --------- Run | Yrd Mat Min Exi Min Mat Fac Fac Fac Was Fac Upp Upp Distress Signals 5 | . 2 . . 1 2 . . . . . . . Communications Jammed . | . . . . . . . . . . . . . Distress Signals . | . . . . . . . . . . . . . Times Spotted 166 | . 22 10 . 7 50 42 1 1 . 10 22 1 Peak Tracking Total 12 | . 6 3 . 3 4 10 1 1 . 6 12 1 Tactical Retreats 28 | . 4 . . 3 5 10 . . . 3 3 . Traps | -11 -10 -10 -10 -9 -8 -7 -6 -5 -5 -5 -5 -5 ------- Run | Yrd Mat Min Exi Min Mat Fac Fac Fac Was Fac Upp Upp Traps Triggered 7 | . 1 . . . 1 1 . 1 . 3 . . Indirectly . | . . . . . . . . . . . . . Trap Hack Attempts . | . . . . . . . . . . . . . Triggered . | . . . . . . . . . . . . . Disarmed . | . . . . . . . . . . . . . Reprogrammed . | . . . . . . . . . . . . . Reused . | . . . . . . . . . . . . . Traps Extracted . | . . . . . . . . . . . . . Installed . | . . . . . . . . . . . . . Triggered . | . . . . . . . . . . . . . Machines | -11 -10 -10 -10 -9 -8 -7 -6 -5 -5 -5 -5 -5 ---------- Run | Yrd Mat Min Exi Min Mat Fac Fac Fac Was Fac Upp Upp Machines Disabled 6 | . . . . . 5 1 . . . . . . Max in Single Turn 4 | . . . . . 4 1 . . . . . . Garrison Access 1 | . . . . . . 1 . . . . . . Machines Repaired . | . . . . . . . . . . . . . Machines Dismantled . | . . . . . . . . . . . . . Machines Sabotaged . | . . . . . . . . . . . . . Overloaded Fab Kills . | . . . . . . . . . . . . . Hacking | -11 -10 -10 -10 -9 -8 -7 -6 -5 -5 -5 -5 -5 --------- Run | Yrd Mat Min Exi Min Mat Fac Fac Fac Was Fac Upp Upp Machines Accessed 32 | . 4 2 4 . 10 9 . . . 2 1 . Terminals 19 | . 4 . . . 8 5 . . . 2 . . Fabricators 1 | . . . . . . 1 . . . . . . Repair Stations 3 | . . . . . 1 2 . . . . . . Recycling Units 1 | . . . . . 1 . . . . . . . Scanalyzers . | . . . . . . . . . . . . . Garrison Access 1 | . . . . . . 1 . . . . . . Total Hacks 94 | . 11 2 27 . 24 24 . . . 5 1 . Successful 69 | . 8 2 27 . 14 14 . . . 3 1 . Failed 25 | . 3 . . . 10 10 . . . 2 . . Catastrophic 2 | . . . . . 1 1 . . . . . . Database Lockouts . | . . . . . . . . . . . . . Manual 16 | . 4 . 1 . 4 7 . . . . . . Terminals 46 | . 11 . . . 20 10 . . . 5 . . Fabricators 1 | . . . . . . 1 . . . . . . Repair Stations 15 | . . . . . 3 12 . . . . . . Recycling Units 1 | . . . . . 1 . . . . . . . Scanalyzers . | . . . . . . . . . . . . . Garrison Access 1 | . . . . . . 1 . . . . . . Terminal Hacks 53 | . 7 2 27 . 10 3 . . . 3 1 . Record 27 | . . . 26 . 1 . . . . . . . Prototype ID Bank 3 | . 1 . . . 2 . . . . . . . Open Door 3 | . . 2 . . . . . . . . 1 . Open DSF 3 | . . . . . . 2 . . . 1 . . Branch Access Points 3 | . 1 . . . 1 . . . . 1 . . Emergency Access Points 2 | . . . . . 2 . . . . . . . Alert Level 1 | . . . . . 1 . . . . . . . Locate Traps 1 | . . . . . . 1 . . . . . . Dispatch Records 1 | . . . . . 1 . . . . . . . Registered Prototypes 1 | . 1 . . . . . . . . . . . Zone Layout 7 | . 4 . . . 2 . . . . 1 . . Proto ID Catalog 1 | . . . 1 . . . . . . . . . Fabricator Hacks . | . . . . . . . . . . . . . Repair Station Hacks 9 | . . . . . 1 8 . . . . . . Scan Component 6 | . . . . . 1 5 . . . . . . Repair 3 | . . . . . . 3 . . . . . . Recycling Unit Hacks 1 | . . . . . 1 . . . . . . . Report Inventory 1 | . . . . . 1 . . . . . . . Scanalyzer . | . . . . . . . . . . . . . Garrison Access Hacks . | . . . . . . . . . . . . . Unauthorized Hacks 6 | . 1 . . . 2 3 . . . . . . Terminals 5 | . 1 . . . 2 2 . . . . . . Botnet 3 | . 1 . . . 2 . . . . . . . Skim 2 | . . . . . . 2 . . . . . . Fabricators . | . . . . . . . . . . . . . Repair Stations . | . . . . . . . . . . . . . Recycling Units . | . . . . . . . . . . . . . Scanalyzers . | . . . . . . . . . . . . . Garrison Access 1 | . . . . . . 1 . . . . . . Jam 1 | . . . . . . 1 . . . . . . Data Cores Recovered 2 | . . . . . 1 1 . . . . . . Used 1 | . . . . . . 1 . . . . . . Hacking Detections 20 | . 4 . . . 9 6 . . . 1 . . Full Trace Events 1 | . . . . . 1 . . . . . . . Feedback Events . | . . . . . . . . . . . . . Feedback Blocked . | . . . . . . . . . . . . . Robot Schematics Acquired . | . . . . . . . . . . . . . Robots Built . | . . . . . . . . . . . . . Authchips . | . . . . . . . . . . . . . Time . | . . . . . . . . . . . . . Total Robot Build Rating . | . . . . . . . . . . . . . Part Schematics Acquired . | . . . . . . . . . . . . . Parts Built . | . . . . . . . . . . . . . Authchips . | . . . . . . . . . . . . . Time . | . . . . . . . . . . . . . Total Part Build Rating . | . . . . . . . . . . . . . Parts Repaired 3 | . . . . . . 3 . . . . . . Time 78 | . . . . . . 78 . . . . . . Parts Recycled . | . . . . . . . . . . . . . Recycled Matter . | . . . . . . . . . . . . . Retrieved Matter . | . . . . . . . . . . . . . Retrieved Components . | . . . . . . . . . . . . . Parts Scanalyzed . | . . . . . . . . . . . . . Part Schematics Acquired . | . . . . . . . . . . . . . Parts Damaged . | . . . . . . . . . . . . . Bothacking | -11 -10 -10 -10 -9 -8 -7 -6 -5 -5 -5 -5 -5 ------------ Run | Yrd Mat Min Exi Min Mat Fac Fac Fac Was Fac Upp Upp Used RIF Installer . | . . . . . . . . . . . . . Robots Hacked . | . . . . . . . . . . . . . Non-combat . | . . . . . . . . . . . . . Combat . | . . . . . . . . . . . . . Robot Hacks Applied . | . . . . . . . . . . . . . Relay Couplers Released . | . . . . . . . . . . . . . Fabnet Peak Effective % . | . . . . . . . . . . . . . Robots Rewired . | . . . . . . . . . . . . . Allies Hacked . | . . . . . . . . . . . . . Hacks Repelled . | . . . . . . . . . . . . . Allies | -11 -10 -10 -10 -9 -8 -7 -6 -5 -5 -5 -5 -5 -------- Run | Yrd Mat Min Exi Min Mat Fac Fac Fac Was Fac Upp Upp Total Allies . | . . . . . . . . . . . . . Largest Group . | . . . . . . . . . . . . . Highest-Rated Group . | . . . . . . . . . . . . . Highest-Rated Ally . | . . . . . . . . . . . . . Total Orders . | . . . . . . . . . . . . . Ally Attacks . | . . . . . . . . . . . . . Total Damage . | . . . . . . . . . . . . . Kills . | . . . . . . . . . . . . . Allies Corrupted . | . . . . . . . . . . . . . Allies Melted . | . . . . . . . . . . . . . Intel | -11 -10 -10 -10 -9 -8 -7 -6 -5 -5 -5 -5 -5 ------- Run | Yrd Mat Min Exi Min Mat Fac Fac Fac Was Fac Upp Upp Active Infowar (turns) 5104 | . . . . . 1544 1860 196 359 39 238 635 233 Optics 3555 | . . . . . . 1855 196 359 39 238 635 233 Terrain 165 | . . . . . . . . . . 64 101 . Structural 316 | . . . . . . . . . . 69 247 . Traps 638 | . . . . . 638 . . . . . . . T.N.C. 1548 | . . . . . 1543 5 . . . . . . Robot Analysis Total . | . . . . . . . . . . . . . Derelict Logs Recovered 3 | . . 2 . . . . . . . . 1 . Drone Launches . | . . . . . . . . . . . . . Drone Recoveries . | . . . . . . . . . . . . . Exploration | -11 -10 -10 -10 -9 -8 -7 -6 -5 -5 -5 -5 -5 ------------- Run | Yrd Mat Min Exi Min Mat Fac Fac Fac Was Fac Upp Upp Turns Passed 7917 | 84 681 742 367 600 1618 2125 196 359 39 238 635 233 Spaces Moved 5119 | 40 442 574 318 281 842 1208 133 134 67 337 592 151 Core 569 | 8 . . . . . 59 133 134 58 127 49 1 Treads 34 | 19 . . . . . . . . . . 15 . Legs 3819 | 13 442 574 318 281 842 882 . . . . 317 150 Wheels 21 | . . . . . . . . . . 21 . . Hover 562 | . . . . . . 267 . . . 84 211 . Flight 114 | . . . . . . . . . 9 105 . . Fastest Speed 33 | 50 120 105 105 105 110 45 50 50 40 33 33 120 Average Speed 110 | 141 120 108 113 167 117 129 50 50 49 57 90 120 Slowest Speed 750 | 160 120 120 185 185 260 750 50 50 120 150 300 200 Overloaded Moves . | . . . . . . . . . . . . . Propulsion Burnouts . | . . . . . . . . . . . . . Robots Hopped . | . . . . . . . . . . . . . Potential Cave-ins 3 | . . . . . 3 . . . . . . . Cave-ins Triggered . | . . . . . . . . . . . . . Exploration Rate (%) 42 | 4 70 99 63 44 65 23 4 3 65 15 73 28 Regions Visited 12 Branch Regions 5 Pre-discovered Areas 2 | . . 2 . . . . . . . . . . Known Exits Taken 2 | . 1 . . . . . . . . 1 . . Unknown Exits Taken 8 | 1 . 1 1 1 1 1 1 . . . 1 . Scrap Searched 3 | . . 1 . . . . . . . . 2 . Spaces Dug 12 | . . . . . 7 5 . . . . . . Terrain Destroyed 274 | 2 . 26 . 8 78 98 . . . . 62 . Melee 11 | . . . . . 6 5 . . . . . . Projectile 9 | . . . . . 9 . . . . . . . AOE 254 | 2 . 26 . 8 63 93 . . . . 62 . Terrain Rammed . | . . . . . . . . . . . . . Walls Destroyed . | . . . . . . . . . . . . . Machines Disabled . | . . . . . . . . . . . . . Actions | -11 -10 -10 -10 -9 -8 -7 -6 -5 -5 -5 -5 -5 --------- Run | Yrd Mat Min Exi Min Mat Fac Fac Fac Was Fac Upp Upp Total 6841 | 58 530 651 325 403 1296 1629 236 426 72 379 654 182 Wait 1107 | . 31 33 1 110 273 222 89 291 . 20 18 19 Move 5108 | 39 441 573 317 280 841 1207 132 134 66 336 591 151 Hop . | . . . . . . . . . . . . . Pick Up 81 | 8 6 6 3 3 15 32 . 1 1 4 2 . Fast Attach 60 | 6 4 3 . . 12 12 . . 2 8 12 1 Attach 30 | 1 . . . . 7 16 1 . . 1 4 . Detach 10 | . . . . . 2 4 1 . 1 . 2 . Swap 42 | 1 6 5 1 4 11 14 . . . . . . Drop 68 | . 9 9 3 1 16 22 . . 2 3 3 . Fire 235 | 3 32 22 . 5 109 54 . . . . 7 3 Melee 82 | . . . . . 6 41 13 . . . 14 8 Ram 1 | . . . . . . 1 . . . . . . Kick 9 | . 1 . . . 4 4 . . . . . . Crush . | . . . . . . . . . . . . . Escape Stasis 7 | . . . . . . . . . . 7 . . Rewire 1 | . . . . . . . . . . . 1 . Trap . | . . . . . . . . . . . . . Miscellaneous . | . . . . . . . . . . . . . Route ------- -11/Scrapyard -10/Materials (discovered 4 exits: [*Mat x2] / *Min x2) -10/Mines (discovered 3 exits: [*Mat x2] / *Exi) -10/Exiles -9/Mines -8/Materials -7/Factory (discovered 3 exits: [*Fac] / [*Sto x2]) -6/Factory -5/Factory -5/Waste -5/Factory (discovered 2 exits: *Upp x2) -5/Upper Caves -5/Upper Caves History --------- Turn | Location | Event 16 | -11/Scrapyard | Discovered new exit (range 13) 85 | -11/Scrapyard | Entered Materials 166 | -10/Materials | Identified exit to Mines 229 | -10/Materials | Discovered new exit (range 16) 308 | -10/Materials | Build established: Mutant 531 | -10/Materials | Discovered new exit (range 10) 585 | -10/Materials | Derelicts attacked the area 766 | -10/Materials | Entered Mines 899 | -10/Mines | Discovered new exit (range 15) 915 | -10/Mines | Met a Derelict who couldn't figure out how to use a Trap Extractor 977 | -10/Mines | Learned location of Storage (-7) 1252 | -10/Mines | Discovered new exit (range 7) 1378 | -10/Mines | Found the Drone Emporium 1391 | -10/Mines | Found Prototype Device 1503 | -10/Mines | Deemed a non-threat by the Exiles lab entrance 1504 | -10/Mines | Discovered new exit (range 5) 1508 | -10/Mines | Entered Exiles 1535 | -10/Exiles | Met 8R-AWN 1553 | -10/Exiles | Met EX-HEX 1585 | -10/Exiles | Met EX-BIN 1637 | -10/Exiles | Aligned with FarCom system 1638 | -10/Exiles | Given EX-Vault access code 1686 | -10/Exiles | Opened EX-Vault 1698 | -10/Exiles | Found Modified TNC 1719 | -10/Exiles | Warned to stay clear of 0b10 Research branches 1750 | -10/Exiles | Met EX-DEC 1854 | -10/Exiles | Discovered new exit (range 12) 1875 | -10/Exiles | Left Exiles lab with Modified TNC 1875 | -10/Exiles | Entered Mines 2158 | -9/Mines | Assembled infested the area 2163 | -9/Mines | Assisted by a Guerilla fighting off Assembled 2457 | -9/Mines | Discovered new exit (range 15) 2475 | -9/Mines | Entered Materials 2475 | -8/Materials | Evolved 4 slots: Propulsion x2, Utility x2 2776 | -8/Materials | Build established: Skirmisher 3690 | -8/Materials | Build established: Scavenger-Mutant 4047 | -8/Materials | Discovered new exit (range 16) 4093 | -8/Materials | Entered Factory 4093 | -7/Factory | Evolved 2 slots: Propulsion x1, Utility x1 4272 | -7/Factory | Identified exit to DSF 4408 | -7/Factory | Discovered new exit (range 8) 4661 | -7/Factory | Discovered new exit (range 9) 4771 | -7/Factory | Cargo convoy interrupted 4909 | -7/Factory | Repaired Aluminum Leg 4922 | -7/Factory | Discovered new exit (range 11) 5185 | -7/Factory | Repaired Aluminum Leg 5212 | -7/Factory | Repaired Aluminum Leg 5647 | -7/Factory | Lost 3 parts (1p2n) 5733 | -7/Factory | Lost 7 parts (1p3n2u1w) 5768 | -7/Factory | Core integrity fell below 50% 5910 | -7/Factory | Build established: Mutant 6005 | -7/Factory | System corruption reached 10% 6213 | -7/Factory | Core integrity fell below 20% 6218 | -7/Factory | Entered another Factory area 6218 | -6/Factory | Evolved 2 slots: Utility x2 6247 | -6/Factory | Lost 3 parts (3n) 6412 | -6/Factory | Discovered new exit (range 5) 6414 | -6/Factory | Entered another Factory area 6414 | -5/Factory | Evolved 2 slots: Utility x2 6773 | -5/Factory | Sucked down chute 6773 | -5/Factory | Entered Waste 6773 | -5/Waste | The area was eerily silent 6793 | -5/Waste | A Compactor rumbled back to life 6793 | -5/Waste | Spotted C-40 Crusher 6795 | -5/Waste | Discovered new exit (range 18) 6812 | -5/Waste | Entered Factory 6895 | -5/Factory | Identified exit to Upper Caves 7050 | -5/Factory | Entered Upper Caves 7151 | -5/Upper Caves | Lost 5 parts (3n2u) 7178 | -5/Upper Caves | Destroyed 8 combat bots 7178 | -5/Upper Caves | Core integrity fell below 50% 7270 | -5/Upper Caves | Core integrity fell below 20% 7529 | -5/Upper Caves | Learned location of 1 exit from Factory 7613 | -5/Upper Caves | Discovered new exit (range 8) 7660 | -5/Upper Caves | Attracted the attention of an 0b10 checkpoint 7685 | -5/Upper Caves | Entered another Upper Caves area 7689 | -5/Upper Caves | Encountered a Warlord checkpoint 7770 | -5/Upper Caves | Build established: Derelict-Mutant 7918 | -5/Upper Caves | Destroyed by H-66 Slayer with Gauss Rifle Last Messages --------------- 07812_ Acquired 2 matter. 07821_ Acquired 4 matter. 07864_ Penetrated by Slug. 07880_ Slug penetrates Wall. 07884_ Penetrated by Slug. 07884_ Proton Cannon destroyed. 07891_ Adv. Terrain Scanner destroyed. 07895_ Penetrated by Slug. 07898_ Carbon-fiber Leg destroyed. 07901_ Penetrated by Slug. 07901_ Carbon-fiber Leg destroyed. 07901_ Penetrated by Slug. 07901_ Critical hit (Destroy). 07904_ Penetrated by Slug. 07905_ H-66 Slayer Hvy. Assault Rifle severed. 07909_ Penetrated by Slug. 07910_ Acquired Hvy. Assault Rifle. 07912_ Blade Saw destroyed. 07914_ System corrupted: Energy discharge (-23). 07915_ Penetrated by Slug. Map ----- +----------------------------------------------------+ | ?????????????????????????????????????????????????? | | ?????????????????????????????????????????????????? | | ?????????????????????????????????????????????????? | | ?????????????????????????????????????????????????? | | ?????????????????????????????????????????????????? | | ?????????????????????????????????????????????????? | | ?????????????????????????????????????????????????? | | ?????????????????????????????????????????????????? | | ?????????????????????????????????????????????????? | | ????????????????????? #??????????????????????????? | | ?????????????????????? #?????????????????????????? | | ?????????????????????? ?????????????????????????? | | ?????????????????????? ?????????????????????????? | | ?????????????????????? #????????????????????????? | | ??????????????????????# ###??????????????????????? | | ???????????????##?????# ??????????????????????? | | ???????????????# #????# ??????????????????????? | | ???????????????? #??## #??????????????????????? | | ????????????????? ### #???????? #????????????? | | ?????????????????? ?????? #????????????? | | ??????????????????? ????? #?????????????? | | ????????????????????# ???? #????????????### | | ?????????????????????# #???# #???#??????### | | ????????????????????## ##?# #??? #???## | | ????????????????????# h ## #??? ##??# | | ????????????????????# @ ##?? #??# | | ????????????????????# ## #? ???# | | ???????????????????## ## ## ????????? | | ??????????????????## ## ?????????? | | ??????????????????# ### ???????????? | | ??????????????????# #### ??????####??? | | ??????????????????## ## #??????## ##?? | | ???????????????????## #??????## #?? | | ????????????????????# #####S ###???## #### | | ????????????????????# ##?## #???# | | ????????????????????## ### #####???# | | ?????????????????????## #???????## #### | | ??????????????????????# ##???????## ##?? | | ??????????????????????## ###??????# ##? | | ???????????????????????# ## ##?????### #? | | ???????????????????????# ##### ###?###### #? | | ???????????????????????## ##???## ### ### #? | | ????????????????????????###???### ## #? | | ??????????????????????????????# #? | | ??????????????????????????????# ## #? | | ??????????????????????????????# ###########? | | ??????????????????????????????# #??????????? | | ???????????????????????????? #?????????? | | ????????????????????????? ## #????????? | | ???????????????????????? ?## #???????? | +----------------------------------------------------+ Best States ------------- Heat Dissipation 48 Energy Generation 19 Energy Capacity 315 Matter Stores 300 Matter Capacity 300 Sight Range 18 Terrain Scan Range 20 Terrain Scan Density 10 Armor Coverage 225 Utility Shielding 33 Evasion (%) 62 Targeting Accuracy 5 Melee Accuracy 16 Target Analysis 5 Recoil Reduction 1 Particle Charging 15 Item Schematics ----------------- None Robot Schematics ------------------ None Fabricated ------------ Nothing Repaired ---------- Aluminum Leg | 15% | -7/Factory Aluminum Leg | 15% | -7/Factory Aluminum Leg | 38% | -7/Factory Alien Tech Used ----------------- None Achievements -------------- None Challenges ------------ None Game ------ Seed IonicFlakDoomcannon Manual? 0 Play Time 02:06:15 Cumulative 58.6 hours Start 2025.09.14 @ 23:48:28 End 2025.09.30 @ 02:12:43 Sessions 18 Manual Loads 0 Difficulty Rogue Special Mode None Game No. 47 Rogue 35 Adventurer 12 Explorer 0 Win Type - Total 1 Types 1/0/0/0/0/0/0/0/0/0 Lore% 21 Gallery% 28 Achievement% 30 Wizard Run 0 Options --------- Layout 0 ASCII 0 Keyboard 0 Movement Numpad Keybinds 0 Fullscreen 2 Font 24/Smallcaps Map View 76x50 Zoom Use 0% Tactical HUD 1 Map Filters NONE Filters NONE Steam 1 RUN: 48d50ba1-236f-44a7-8568-bdfd7eca0074